Cogmind - Beta 12 @@@ ROGUE MODE // 2024.01.28 @ 21:33:54 Player: Jiyva Result: Destroyed by L-31 Rogue with Katana Performance ------------- Evolutions (1) 500 Regions Visited (2) 400 Robots Destroyed (19) 95 Value Destroyed (411) 411 Prototype IDs (2) 40 Alien Tech Used (0) 0 Bonus (0) 0 TOTAL SCORE: 1446 Bonus ------- None Cogmind --------- Core Integrity 0/400 Matter 290/300 Energy 95/100 System Corruption 0% Temperature Cool (0) Movement Core (100) Ox1 Location -9/Materials Parts ------- > --- POWER (1) -------- (None) > --- PROPULSION (2) --- (None) > --- UTILITY (4) ------ Advanced Visual Processing Unit > --- WEAPON (2) ------- Katana Katana > --- INVENTORY (5) ---- Ion Engine Seismic Detector Light Assault Rifle Datajack Katana Peak State ------------ > --- POWER ------------ Light Ion Engine > --- PROPULSION ------- Aluminum Leg Aluminum Leg > --- UTILITY ---------- Targeting Computer Core Shielding Light Armor Plating Reflective Plating > --- WEAPON ----------- Light Assault Rifle Katana > --- INVENTORY -------- Ion Engine Seismic Detector Light EM Pulse Cannon Light Assault Rifle Datajack [Rating: 13] Favorites ----------- Power Light Ion Engine Engine Light Ion Engine Propulsion Hover Unit Treads Light Treads Leg Aluminum Leg Wheel Compact Wheel Hover Unit Hover Unit Flight Unit Flight Unit Utility Small Storage Unit Device Heat Sink Storage Small Storage Unit Processor Targeting Computer Protection Core Shielding Weapon Light Assault Rifle Energy Gun Medium Laser Ballistic Gun Light Assault Rifle Slashing Weapon Katana Build | -11 -10 -9 ------- Run | Jun Mat Mat Slots Evolved 2 | . . 2 Power . | . . . Propulsion . | . . . Utility 2 | . . 2 Weapon . | . . . Parts Attached 28 | 6 13 9 Power 2 | 1 1 . Engine 2 | 1 1 . Core . | . . . Reactor . | . . . Propulsion 10 | 2 4 4 Treads 1 | . . 1 Leg 5 | 2 1 2 Wheel 1 | . 1 . Hover 2 | . 2 . Flight 1 | . . 1 Utility 8 | 1 4 3 Device 2 | . 2 . Storage 1 | 1 . . Processor 2 | . 1 1 Hackware . | . . . Protection 3 | . 1 2 Artifact . | . . . Weapon 8 | 2 4 2 Energy Gun 1 | 1 . . Energy Cannon . | . . . Ballistic Gun 5 | 1 4 . Ballistic Cannon . | . . . Launcher . | . . . Special Weapon . | . . . Impact Weapon . | . . . Slashing Weapon 2 | . . 2 Piercing Weapon . | . . . Special Melee Weapon . | . . . Unidentified Prototypes . | . . . Parts Lost 12 | . 4 8 Power 2 | . 1 1 Propulsion 6 | . 2 4 Utility 3 | . 1 2 Weapon 1 | . . 1 Highest Loss Streak 6 | . 3 6 To Critical Strikes . | . . . Average Slot Usage (%) 83 | . 87 69 Engine 11 | . 12 7 Leg 4 | . 4 3 Wheel 3 | . 4 . Hover 11 | . 12 9 Device 9 | . 12 . Storage 7 | . 9 . Processor 4 | . 1 14 Protection 4 | . . 13 Energy Gun 1 | . 2 . Ballistic Gun 21 | . 25 11 Slashing Weapon 2 | . . 8 Naked Turns . | . . . Heaviest Build 13 | 13 13 10 Greatest Support 20 | 20 20 20 Greatest Overweight (x) 3 | . 3 3 Average Overweight (x) . | . . . Largest Inventory Capacity 8 | 8 8 5 Average Capacity 6 | 6 7 5 Most Carried 5 | 2 5 5 Average Carried 3 | . 3 4 Final Capacity 8 | 8 5 5 Final Carried 5 | 2 5 5 Class Distribution -------------------- 100% | Mutant Dominant Class ---------------- Mutant | -10/Materials Mutant | -9/Materials Resources | -11 -10 -9 ----------- Run | Jun Mat Mat Matter Collected 513 | 195 253 65 Remotely . | . . . Salvage Created 658 | . 399 259 Parts 42 | . 22 20 Haulers Intercepted 1 | . 1 . Recyclers Shooed . | . . . Parts Field Recycled . | . . . Retrieved Matter . | . . . Parts Self-Destructed . | . . . Prevented . | . . . Kills | -11 -10 -9 ------- Run | Jun Mat Mat Combat Hostiles Destroyed 16 | . 9 7 Melee 7 | . . 7 Guns 9 | . 9 . Classes Destroyed 6 | . 5 1 Hauler 1 | . 1 . Recycler 1 | . 1 . Watcher 1 | . 1 . Swarmer 8 | . 6 2 Grunt 6 | . 3 3 Sentry 2 | . . 2 Best Kill Streak 3 | . 3 3 Combat Bots Only 3 | . 2 3 Max Kills in Single Turn 1 | . 1 1 Gunslinging . | . . . Exploded . | . . . Melee 1 | . . 1 Uniques/NPCs Destroyed . | . . . Combat | -11 -10 -9 -------- Run | Jun Mat Mat Damage Taken 1578 | . 700 878 Core 652 | . 233 419 Absorbed by Shields . | . . . Redirected to Shielding 50 | . . 50 Core Remaining (%) 53 | 100 6 . Volleys Fired 43 | . 43 . Largest 2 | . 2 . Hottest 70 | . 70 . Shots Fired 86 | . 86 . Gun 86 | . 86 . Cannon . | . . . Launcher . | . . . Special . | . . . Kinetic 78 | . 78 . Thermal 8 | . 8 . Explosive . | . . . Electromagnetic . | . . . Robot Hit Streak 8 | . 8 . Robot Miss Streak 5 | . 5 . Penetration Max . | . . . Secondary Targets 2 | . 2 . Max Gunslinging Chain 1 | . 1 . Shots Hit Robots 76 | . 56 20 Core Hits 33 | . 26 7 Critical Kills 1 | . 1 . Critical Parts Destroyed 1 | . 1 . Critical Strikes 6 | . 2 4 Destroy 2 | . 2 . Sever 4 | . . 4 Melee Attacks 36 | . . 36 Impact . | . . . Slashing 36 | . . 36 Piercing . | . . . Sneak Attacks . | . . . Combat Hostiles . | . . . Follow-up Attacks . | . . . Damage Inflicted 1185 | . 538 647 Guns 538 | . 538 . Cannons . | . . . Explosions . | . . . Melee 647 | . . 647 Ramming . | . . . Kinetic 474 | . 474 . Thermal 64 | . 64 . Explosive . | . . . Electromagnetic . | . . . Impact . | . . . Slashing 647 | . . 647 Piercing . | . . . Highest Corruption . | . . . Average Corruption . | . . . Corruption Purged . | . . . Corruption Blocked . | . . . Overload Shots . | . . . Overflow Damage 11 | . . 11 Projectiles . | . . . Explosions . | . . . Melee 11 | . . 11 Knockbacks . | . . . Impact . | . . . Kinetic . | . . . Secondary . | . . . Self-Inflicted Damage . | . . . Shots . | . . . Rammed . | . . . Targets Rammed . | . . . Kicked . | . . . Crushed . | . . . Highest Temperature 192 | . 192 . Average Temperature 85 | . 85 . Received Heat Transfer 360 | . 204 156 Siege Activations . | . . . Robots Corrupted . | . . . Combat Hostiles . | . . . Parts Fried . | . . . Impact Corruptions . | . . . Robots Melted . | . . . Combat Hostiles . | . . . Parts Melted . | . . . Heat Transferred 185 | . 185 . Parts Sabotaged . | . . . Parts Stolen . | . . . Parts Stripped . | . . . Power Chain Reactions . | . . . Missiles Intercepted . | . . . Alert | -11 -10 -9 ------- Run | Jun Mat Mat Peak Influence 196 | . 189 196 Initial 31 | . . 31 Average 67 | . 69 81 Maximum Alert Level . | . . . Low Security (%) 100 | 100 100 100 Level 1 . | . . . Level 2 . | . . . Level 3 . | . . . Level 4 . | . . . Level 5 . | . . . High Security . | . . . Max Security . | . . . Squads Dispatched 2 | . 1 1 Investigation 1 | . . 1 Extermination . | . . . Reinforcement 1 | . 1 . Assault . | . . . Garrison . | . . . Intercept . | . . . Searches Triggered . | . . . Construction Impeded . | . . . Haulers Reinforced . | . . . Active Scanning Responses . | . . . Cargo Convoy Interrupts . | . . . Stealth | -11 -10 -9 --------- Run | Jun Mat Mat Distress Signals 1 | . . 1 Communications Jammed . | . . . Distress Signals . | . . . Times Spotted 35 | . 19 16 Peak Tracking Total 8 | . 7 8 Tactical Retreats 4 | . 1 3 Traps | -11 -10 -9 ------- Run | Jun Mat Mat Traps Triggered 1 | . . 1 Indirectly . | . . . Trap Hack Attempts . | . . . Triggered . | . . . Disarmed . | . . . Reprogrammed . | . . . Reused . | . . . Traps Extracted . | . . . Installed . | . . . Triggered . | . . . Machines | -11 -10 -9 ---------- Run | Jun Mat Mat Machines Disabled . | . . . Max in Single Turn . | . . . Machines Repaired . | . . . Machines Sabotaged . | . . . Overloaded Fab Kills . | . . . Hacking | -11 -10 -9 --------- Run | Jun Mat Mat Machines Accessed 5 | . 5 . Terminals 5 | . 5 . Fabricators . | . . . Repair Stations . | . . . Recycling Units . | . . . Scanalyzers . | . . . Garrison Access . | . . . Total Hacks 8 | . 8 . Successful 2 | . 2 . Failed 6 | . 6 . Catastrophic 1 | . 1 . Database Lockouts . | . . . Manual 2 | . 2 . Terminals 8 | . 8 . Fabricators . | . . . Repair Stations . | . . . Recycling Units . | . . . Scanalyzers . | . . . Garrison Access . | . . . Terminal Hacks 2 | . 2 . Record 1 | . 1 . Prototype ID Bank 1 | . 1 . Fabricator Hacks . | . . . Repair Station Hacks . | . . . Recycling Unit Hacks . | . . . Scanalyzer . | . . . Garrison Access Hacks . | . . . Unauthorized Hacks . | . . . Terminals . | . . . Fabricators . | . . . Repair Stations . | . . . Recycling Units . | . . . Scanalyzers . | . . . Garrison Access . | . . . Data Cores Recovered . | . . . Used . | . . . Hacking Detections 4 | . 4 . Full Trace Events . | . . . Feedback Events . | . . . Feedback Blocked . | . . . Robot Schematics Acquired . | . . . Robots Built . | . . . Authchips . | . . . Time . | . . . Total Robot Build Rating . | . . . Part Schematics Acquired . | . . . Parts Built . | . . . Authchips . | . . . Time . | . . . Total Part Build Rating . | . . . Parts Repaired . | . . . Time . | . . . Parts Recycled . | . . . Recycled Matter . | . . . Retrieved Matter . | . . . Retrieved Components . | . . . Parts Scanalyzed . | . . . Part Schematics Acquired . | . . . Parts Damaged . | . . . Bothacking | -11 -10 -9 ------------ Run | Jun Mat Mat Used RIF Installer . | . . . Robots Hacked . | . . . Non-combat . | . . . Combat . | . . . Robot Hacks Applied . | . . . Relay Couplers Released . | . . . Fabnet Peak Effective % . | . . . Robots Rewired . | . . . Allies Hacked . | . . . Hacks Repelled . | . . . Allies | -11 -10 -9 -------- Run | Jun Mat Mat Total Allies . | . . . Largest Group . | . . . Highest-Rated Group . | . . . Highest-Rated Ally . | . . . Total Orders . | . . . Ally Attacks . | . . . Total Damage . | . . . Kills . | . . . Allies Corrupted . | . . . Allies Melted . | . . . Intel | -11 -10 -9 ------- Run | Jun Mat Mat Robot Analysis Total . | . . . Derelict Logs Recovered . | . . . Drone Launches . | . . . Drone Recoveries . | . . . Exploration | -11 -10 -9 ------------- Run | Jun Mat Mat Turns Passed 946 | 67 645 234 Spaces Moved 821 | 49 604 168 Core 20 | 3 8 9 Treads 7 | . . 7 Legs 122 | 46 58 18 Wheels 128 | . 128 . Hover 534 | . 410 124 Flight 10 | . . 10 Fastest Speed 40 | 50 56 40 Average Speed 74 | 115 73 66 Slowest Speed 200 | 120 200 200 Overloaded Moves . | . . . Propulsion Burnouts . | . . . Robots Hopped . | . . . Cave-ins Triggered . | . . . Exploration Rate (%) 37 | 4 93 14 Regions Visited 2 Branch Regions . Pre-discovered Areas . | . . . Known Exits Taken . | . . . Unknown Exits Taken 2 | 1 1 . Scrap Searched . | . . . Spaces Dug . | . . . Terrain Destroyed . | . . . Melee . | . . . Projectile . | . . . AOE . | . . . Terrain Rammed . | . . . Walls Destroyed . | . . . Machines Disabled . | . . . Actions | -11 -10 -9 --------- Run | Jun Mat Mat Total 1024 | 56 731 237 Wait 77 | . 61 16 Move 819 | 48 603 168 Hop . | . . . Pick Up 8 | 2 4 2 Fast Attach 22 | 6 8 8 Attach 1 | . . 1 Detach 5 | . 3 2 Swap 5 | . 5 . Drop 8 | . 4 4 Fire 43 | . 43 . Melee 36 | . . 36 Ram . | . . . Kick . | . . . Crush . | . . . Escape Stasis . | . . . Rewire . | . . . Trap . | . . . Miscellaneous . | . . . Route ------- -11/Junkyard -10/Materials (discovered 3 exits: [*Mat x3]) -9/Materials History --------- Turn | Location | Event 21 | -11/Junkyard | Discovered new exit (range 15) 68 | -11/Junkyard | Entered Materials 178 | -10/Materials | Core integrity fell below 50% 212 | -10/Materials | Lost 3 parts (1p2n) 299 | -10/Materials | Core integrity fell below 20% 301 | -10/Materials | Build established: Mutant 470 | -10/Materials | Discovered new exit (range 7) 546 | -10/Materials | Discovered new exit (range 16) 660 | -10/Materials | Discovered new exit (range 3) 713 | -10/Materials | Entered another Materials area 713 | -9/Materials | Evolved 2 slots: Utility x2 902 | -9/Materials | Core integrity fell below 50% 925 | -9/Materials | Core integrity fell below 20% 940 | -9/Materials | Lost 6 parts (1p2n2u1w) 947 | -9/Materials | Destroyed by L-31 Rogue with Katana Last Messages --------------- 00879_ S-10 Pest destroyed. 00879_ Lgt. Assault Rifle destroyed. 00883_ G-34 Mercenary destroyed. 00885_ Aluminum Leg destroyed. 00885_ S-10 Pest destroyed. 00889_ K-01 Serf collects debris. 00905_ Destroyed Flight Unit. 00909_ Core Shielding destroyed. 00913_ S-10 Pest destroyed. 00915_ Y-45 Defender Lgt. Treads severed. 00918_ Y-45 Defender destroyed. 00924_ S-10 Pest destroyed. 00928_ Acquired Flight Unit. 00930_ Acquired 10 matter. 00932_ Discarded Targeting Computer. 00933_ Acquired Katana. 00935_ Dropped Lgt. EM Pulse Cannon. 00935_ Acquired Katana. 00939_ W-16 Scout sends out distress signal. 00945_ Flight Unit severed. Map ----- +----------------------------------------------------+ | # ?????????# ! # #??????????????????????? | | # #????????# # #??????????????????????? | | # +????????# # #??????????????????????? | | # #????????########### #??????????????????????? | | # #????????# # #??????????????????????? | | # #????????# # #??????????????????????? | | # #????????# # #??????????????????????? | | + #????????# # ###########????????????? | | # ########## """ """ # # #????????????? | | # + """ """ # # #????????????? | | # ########### """ """ # # #????????????? | | ??????????# # # #????????????? | | #???????????#######+### + #????????????? | | ???????????????# # #????????????? | | ???????????????# # #????????????? | | ???????????????# # #????????????? | | ???????????????# ###########+######????????????? | | ???????????????# ??????????# #?????????????????? | | ???????????????# ??????????# #?????????????????? | | ???????????????# ??????????# #?????????????????? | | ???????????????# ??????????# #?????????????????? | | ???????????????# ??????????# #?????????????????? | | ???????????????# ########??# #?????????????????? | | ???????????????# #!!!! /#??# #############?????? | | ????????#####??# ?#! !!] #??# + #?????? | | ???????? T # ?# @#??# # #?????? | | ????????????// + #[ l#### # """ "" #?????? | | ???????????????# %%== # """ "" #?????? | | ???????????????# *=%*[ + """ T" #?????? | | ???????????????# [=!% # "" #?????? | | ???????????????##+######%######### "" #?????? | | ???????????????????????#=#???????# #?????? | | ??????????????????????##g#######?#/#########?????? | | ??????????????????????#!%%== #?# #?????????????? | | ??????????????????????#=[%%! #?# #?????????????? | | ??????????????????????#*=[[ #? ?????????????? | | ??????????????????????#[!= #? ?????????????? | | ??????????????????????# / ?????????????? | | ??????????????????????# # ?????????????? | | ??????????????????????# #? ????????????? | | ??????????????????????# = #? ##???????????? | | ??????????????????????# #? #????????????? | | ??????????????????????#####+####? ?????????????? | | ???????????????????????????! ???? ?????????????? | | ???????????????????????????! ???? ?????????????? | | ???????????????????????????! ???? ?????????????? | | ??????????????????????????? ????????????????????? | | ??????????????????????????? ???????????????????? | | ???????????????????????????? ???????????????????? | | ????????????????????????????##???????????????????? | +----------------------------------------------------+ Best States ------------- Heat Dissipation 35 Energy Generation 10 Energy Capacity 250 Matter Stores 300 Matter Capacity 300 Sight Range 20 Terrain Scan Density 10 Armor Coverage 150 Core Shielding 20 Evasion (%) 55 Targeting Accuracy 5 Recoil Reduction 1 Item Schematics ----------------- None Robot Schematics ------------------ None Fabricated ------------ Nothing Alien Tech Used ----------------- None Achievements -------------- None Challenges ------------ None Game ------ Seed MatterSwarmPropulsion Manual? 0 Play Time 00:30:24 Cumulative 128.3 hours Start 2024.01.28 @ 19:10:36 End 2024.01.28 @ 21:33:54 Sessions 7 Manual Loads 0 Difficulty Rogue Special Mode None Game No. 43 Rogue 43 Adventurer 0 Explorer 0 Win Type - Total 0 Types 0/0/0/0/0/0/0/0/0 Lore% 23 Gallery% 49 Achievement% 33 Wizard Run 0 Options --------- ASCII 1 Keyboard 1 Movement Vi Keybinds 1 Fullscreen 1 Font 18/X11 Map View 76x50 Tactical HUD 1 Map Filters NONE Filters NONE Steam 1 RUN: 4e6a4125-fd12-4132-8c2c-66c6eed50dc8